bitfinex/quotes_SOLUSD_20250815
["timestamp","ask_amount","ask_price","bid_price","bid_amount"]
[1755260399173,8.28446474,194.09,194.06,1.0]
[1755260399333,36.3,194.08,194.06,1.0]
[1755260399527,36.3,194.08,194.06,1.46]
[1755260399731,15.10621557,194.0,193.92,0.2]
[1755260399970,8.28446474,193.94,193.92,0.2]
[1755260400258,36.64,193.93,193.92,0.2]
[1755260400554,36.64,193.93,193.88,8.28446474]
[1755260400555,50.0809645,193.93,193.89,0.16]
[1755260400737,13.57188149,193.92,193.89,0.16]
[1755260401053,36.64,193.91,193.9,26.0]
[1755260401451,36.64,193.91,193.88,18.72970937]
[1755260401657,36.64,193.91,193.88,5.15782788]
[1755260401834,36.64,193.91,193.9,26.0]
[1755260402231,50.89188149,193.91,193.79,5.16022498]
[1755260402565,50.89188149,193.91,193.77,0.02]
[1755260402566,13.57188149,193.8,193.77,0.02]
[1755260402858,36.92,193.79,193.77,0.02]
[1755260403159,0.68,193.86,193.78,13.57188149]
[1755260403331,0.68,193.85,193.77,18.75261708]
[1755260403532,37.66,193.85,193.77,0.02]
[1755260403756,13.57188149,193.78,193.77,0.02]
[1755260403954,50.55188149,193.78,193.77,0.02]
[1755260404150,51.23188149,193.78,193.77,0.02]
[1755260404355,15.78621557,193.78,193.77,0.02]
[1755260404555,52.78621557,193.78,193.77,0.02]
[1755260404764,4.26685204,193.87,193.77,0.02]
[1755260404765,0.68,193.81,193.77,0.02]
[1755260404938,52.16621557,193.8,193.77,0.02]
[1755260405134,28.67809706,193.78,193.77,0.02]
[1755260405335,15.10621557,193.76,193.65,13.57188149]
[1755260405534,26.0,193.77,193.56,258.10606061]
[1755260405535,13.57188149,193.68,193.59,0.16]
[1755260405740,26.0,193.71,193.57,5.16608978]
[1755260405741,13.57188149,193.65,193.57,5.16608978]
[1755260405934,37.16,193.67,193.63,13.57188149]
[1755260405935,15.10621557,193.67,193.63,13.57188149]
[1755260406141,26.0,193.71,193.64,13.57188149]
[1755260406341,15.10621557,193.69,193.64,13.57188149]
[1755260406562,15.10621557,193.69,193.61,5.16502246]
[1755260406735,37.26,193.68,193.62,0.16]
[1755260406943,37.26,193.68,193.64,13.57188149]
[1755260407144,14.25188149,193.67,193.53,12.91738769]
[1755260407360,13.57188149,193.61,193.55,13.57188149]
[1755260407585,37.26,193.6,193.55,13.57188149]
[1755260407751,0.68,193.64,193.59,13.57188149]
[1755260408075,0.68,193.71,193.63,13.57188149]
[1755260408376,13.57188149,193.68,193.62,13.57188149]
[1755260408681,38.0,193.67,193.62,13.57188149]
[1755260408974,15.10621557,193.71,193.63,0.16]
[1755260409183,15.10621557,193.69,193.59,26.0]
[1755260409368,15.10621557,193.69,193.56,248.10606061]
[1755260409369,13.57188149,193.63,193.56,248.10606061]
[1755260409569,13.57188149,193.6,193.56,248.10606061]
[1755260409877,15.10621557,193.61,193.56,248.10606061]
[1755260410075,50.97188149,193.62,193.57,0.03]
[1755260410240,14.25188149,193.61,193.59,0.03]
[1755260410442,13.57188149,193.6,193.59,0.03]
[1755260410648,29.35809706,193.6,193.59,0.03]
[1755260411054,29.35809706,193.6,193.56,248.10606061]
[1755260411055,26.0,193.57,193.56,248.10606061]
[1755260411257,41.78621557,193.57,193.56,246.66606061]
[1755260411481,29.35809706,193.57,193.56,246.66606061]
[1755260411684,66.89809706,193.57,193.56,246.66606061]
[1755260412254,37.54,193.57,193.56,246.66606061]
[1755260412471,57.81230535,193.57,193.56,246.66606061]
[1755260412774,72.06418684,193.57,193.56,246.66606061]
[1755260412971,52.64621557,193.57,193.56,246.66606061]
[1755260413180,66.89809706,193.57,193.56,246.66606061]
[1755260413369,66.89809706,193.57,193.56,214.86856358]
[1755260413582,96.89809706,193.57,193.56,65.39818871]
[1755260413760,109.32621557,193.57,193.56,39.2789062]
[1755260414089,82.72621557,193.57,193.56,39.2789062]
[1755260414383,97.46418684,193.57,193.56,39.2789062]
[1755260414681,98.14418684,193.57,193.56,1e-08]
[1755260414878,128.14418684,193.57,193.56,1e-08]
[1755260415086,127.50418684,193.57,193.56,1e-08]
[1755260415457,97.50418684,193.57,193.56,1e-08]
[1755260415665,37.66,193.57,193.56,14.2518815]
[1755260415871,37.68,193.59,193.56,14.2518815]
[1755260416079,0.68,193.68,193.56,14.2518815]
[1755260416080,5.16342231,193.67,193.58,13.57188149]
[1755260416388,5.16295905,193.69,193.63,13.57188149]
[1755260416573,37.7,193.68,193.56,1e-08]
[1755260416752,13.57188149,193.63,193.56,1e-08]
[1755260416951,5.16295905,193.69,193.56,1e-08]
[1755260416952,13.57188149,193.61,193.56,1e-08]
[1755260417157,13.57188149,193.57,193.56,1e-08]
[1755260417374,66.41809706,193.57,193.56,1e-08]
[1755260417582,67.09809706,193.57,193.56,1e-08]
[1755260417878,66.43809706,193.57,193.56,1e-08]
[1755260418081,67.11809706,193.57,193.56,1e-08]
[1755260418284,41.10621557,193.53,193.43,13.57188149]
[1755260418503,41.10621557,193.53,193.34,12.92995308]
[1755260418504,71.0122015,193.52,193.41,14.25188149]
[1755260418691,41.10621557,193.51,193.41,0.68]
[1755260418894,19.46145992,193.46,193.41,0.68]
[1755260419086,37.82,193.45,193.44,19.46145992]
[1755260419401,37.82,193.45,193.41,19.46145992]
[1755260419607,5.16742455,193.52,193.44,20.14145992]
[1755260419789,37.86,193.51,193.48,19.46145992]
[1755260420094,37.86,193.5,193.39,7.86684128]
[1755260420293,19.46145992,193.47,193.4,0.68]
[1755260420478,19.46145992,193.44,193.4,0.68]
[1755260420680,19.46145992,193.41,193.39,2.69596086]
[1755260420891,58.04145992,193.4,193.35,2.68553852]
[1755260421096,38.02,193.39,193.35,2.68553852]
[1755260421281,38.02,193.38,193.35,2.68553852]
[1755260421679,38.02,193.38,193.35,22.14699844]
[1755260421881,38.02,193.38,193.36,20.14145992]
[1755260422089,38.02,193.38,193.35,2.68553852]
[1755260422302,19.46145992,193.41,193.36,0.68]
[1755260422603,38.06,193.4,193.38,19.46145992]
[1755260422808,38.06,193.4,193.38,0.68]
[1755260423001,0.68,193.47,193.39,20.14145992]
[1755260423002,19.46145992,193.47,193.39,20.14145992]
[1755260423200,15.13863799,193.55,193.32,26.0]
[1755260423201,2.68578356,193.54,193.4,0.68]
[1755260423513,5.16635668,193.56,193.43,26.0]
[1755260423686,5.16635668,193.56,193.49,19.46145992]
[1755260423885,38.1,193.55,193.5,19.46145992]
[1755260424082,38.1,193.55,193.51,19.46145992]
[1755260424280,38.1,193.55,193.47,0.68]
[1755260424486,38.1,193.55,193.51,19.46145992]
[1755260424681,38.1,193.55,193.48,5.84835325]
[1755260424682,38.1,193.55,193.53,19.46145992]
[1755260424884,34.56767549,193.58,193.46,5.16882518]
[1755260425083,15.10621557,193.56,193.46,0.68]
[1755260425309,15.10621557,193.56,193.43,5.16958579]
[1755260425310,19.46145992,193.49,193.43,0.68]
[1755260425518,38.14,193.49,193.47,19.46145992]
[1755260425726,38.14,193.49,193.45,19.46145992]
[1755260426088,57.60145992,193.49,193.43,20.14145992]
[1755260426302,38.14,193.49,193.44,19.46145992]
[1755260426509,38.14,193.49,193.44,0.68]
[1755260426699,43.30826728,193.49,193.44,0.68]
[1755260426882,0.68,193.48,193.4,0.68]
[1755260427085,0.68,193.48,193.4,20.14145992]
[1755260427086,19.46145992,193.47,193.4,20.14145992]
[1755260427285,19.46145992,193.45,193.39,19.49145992]
[1755260427513,38.16,193.44,193.39,19.49145992]
[1755260427817,0.68,193.43,193.39,0.03]
[1755260428210,19.46145992,193.41,193.39,0.03]
[1755260428510,43.35063081,193.4,193.39,0.03]
[1755260428813,62.81209073,193.4,193.39,0.03]
[1755260428992,63.49209073,193.4,193.39,0.03]
[1755260429399,44.03063081,193.4,193.39,0.03]
[1755260429629,43.35063081,193.4,193.39,0.03]
[1755260429806,5.17035973,193.42,193.39,0.03]
[1755260430006,38.2,193.41,193.39,0.03]
[1755260430207,38.88,193.41,193.39,0.03]
[1755260430408,24.63209073,193.4,193.39,0.03]
[1755260430625,78.6183063,193.4,193.39,0.03]
[1755260430916,78.6183063,193.4,193.2,10.0]
[1755260430917,15.10621557,193.39,193.21,38.16]
[1755260431085,15.10621557,193.37,193.21,38.16]
[1755260431289,19.46145992,193.33,193.17,2.69818242]
[1755260431485,19.46145992,193.31,193.13,48.24]
[1755260431723,38.91,193.32,193.24,19.46145992]
[1755260431921,19.46145992,193.31,193.24,19.46145992]
[1755260432098,19.46145992,193.31,193.25,19.46145992]
[1755260432306,38.3,193.3,193.16,0.51770552]
[1755260432510,0.67,193.35,193.29,19.46145992]
[1755260432810,38.28,193.34,193.31,14.46145992]
[1755260433019,19.46145992,193.33,193.25,0.72]
[1755260433198,20.13145992,193.33,193.26,19.46145992]
[1755260433405,19.46145992,193.32,193.26,19.46145992]
[1755260433607,38.28,193.34,193.17,18.11875549]
[1755260433917,19.46145992,193.32,193.26,19.46145992]
[1755260434121,15.10621557,193.33,193.18,0.72]
[1755260434122,19.46145992,193.28,193.18,0.72]
[1755260434321,19.46145992,193.26,193.18,0.72]
[1755260434522,19.46145992,193.21,193.14,0.72]
[1755260434820,38.42,193.2,193.15,19.46145992]
[1755260435032,39.09,193.19,193.11,320.07575758]
[1755260435198,41.10621557,193.23,193.11,320.07575758]
[1755260435199,58.55145992,193.18,193.11,320.07575758]
[1755260435403,38.42,193.17,193.15,19.46145992]
[1755260435625,0.67,193.21,193.16,19.46145992]
[1755260435798,5.84464424,193.25,193.2,19.46145992]
[1755260435997,51.30535769,193.28,193.21,19.46145992]
[1755260436310,51.30535769,193.28,193.11,325.97401798]
[1755260436311,15.10621557,193.21,193.11,325.97401798]
[1755260436630,0.67,193.24,193.17,19.46145992]
[1755260436940,19.46145992,193.19,193.11,320.79575758]
[1755260437098,0.67,193.18,193.15,19.46145992]
[1755260437296,0.67,193.18,193.11,320.07575758]
[1755260437297,38.56,193.17,193.11,310.29575758]
[1755260437802,38.56,193.17,193.15,19.46145992]
[1755260438017,38.56,193.17,193.16,19.46145992]
[1755260438217,0.67,193.21,193.16,19.46145992]
[1755260438218,38.62,193.21,193.16,19.46145992]
[1755260438408,38.62,193.21,193.2,19.46145992]
[1755260438617,147.11628603,193.37,193.2,38.29740194]
[1755260438618,0.67,193.32,193.2,38.29740194]
[1755260438940,0.67,193.32,193.21,0.72]
[1755260438941,38.64,193.31,193.21,0.72]
[1755260439343,19.46145992,193.3,193.24,19.46145992]
[1755260439503,0.73,193.36,193.29,19.46145992]
[1755260439707,0.73,193.36,193.27,0.72]
[1755260439914,38.7,193.35,193.27,0.72]
[1755260440216,38.7,193.35,193.25,19.46145992]
[1755260440217,19.46145992,193.31,193.25,19.46145992]
[1755260440431,39.37,193.3,193.21,0.72]
[1755260440736,43.87343697,193.3,193.21,19.46145992]
[1755260440942,43.87343697,193.3,193.23,19.46145992]
[1755260440943,15.10621557,193.29,193.23,19.46145992]
[1755260441146,63.33489689,193.3,193.21,0.72]
[1755260441346,19.46145992,193.27,193.17,5.89678728]
[1755260441545,19.46145992,193.28,193.22,19.46145992]
[1755260441868,20.13145992,193.29,193.18,0.72]
[1755260442160,38.74,193.31,193.28,19.46145992]
[1755260442335,38.74,193.31,193.3,19.46145992]
[1755260442514,38.74,193.31,193.29,5.17345865]
[1755260442721,38.74,193.31,193.3,19.46145992]
[1755260443252,38.76,193.35,193.3,19.46145992]
[1755260443466,0.06,193.36,193.34,19.46145992]
[1755260443761,0.06,193.36,193.35,20.18145992]
[1755260443967,0.06,193.38,193.35,20.18145992]
[1755260444172,1e-08,193.38,193.37,19.46145992]
[1755260444372,1e-08,193.38,193.27,10.0]
[1755260444694,1e-08,193.38,193.35,19.46145992]
[1755260445033,0.67000001,193.38,193.35,19.46145992]
[1755260445240,0.67000001,193.38,193.34,19.46145992]
[1755260445868,1e-08,193.38,193.34,19.46145992]
[1755260446075,1e-08,193.38,193.37,19.46145992]
[1755260446270,1e-08,193.38,193.36,19.46145992]
[1755260446569,1e-08,193.38,193.31,5.17302157]
[1755260446570,1e-08,193.38,193.33,19.46145992]
[1755260446770,1e-08,193.38,193.35,19.46145992]
[1755260447070,1e-08,193.38,193.37,19.46145992]
[1755260447451,1e-08,193.38,193.37,20.18145992]
[1755260447652,0.67,193.52,193.37,46.18145992]
[1755260447972,39.45,193.52,193.5,19.46145992]
[1755260448273,38.78,193.52,193.5,19.46145992]
[1755260448479,1.0,193.56,193.51,19.46145992]
[1755260448683,1.0,193.56,193.52,0.72]
[1755260448864,1.0,193.56,193.55,19.46145992]
[1755260449184,1.0,193.56,193.49,5.88796756]
[1755260449357,1.0,193.56,193.55,19.46145992]
[1755260449759,1.0,193.56,193.49,5.88796756]
[1755260449968,1.0,193.56,193.52,19.46145992]
[1755260449969,6.16638415,193.56,193.52,19.46145992]
[1755260450157,0.67,193.55,193.5,19.46145992]
[1755260450483,5.16715754,193.53,193.43,26.72]
[1755260450695,3.77079587,193.52,193.48,19.46145992]
[1755260451064,3.77079587,193.52,193.46,19.46145992]
[1755260451065,0.67,193.51,193.46,19.46145992]
[1755260451238,3.38737682,193.51,193.44,0.72]
[1755260451387,3.38737682,193.52,193.48,19.46145992]
[1755260451564,3.77485764,193.51,193.44,0.72]
[1755260451885,7.16223446,193.51,193.48,19.46145992]
[1755260452208,19.46145992,193.49,193.42,19.46145992]
[1755260452376,46.63223446,193.5,193.38,0.72]
[1755260452377,27.29369438,193.48,193.38,0.72]
[1755260452685,27.29369438,193.48,193.4,19.46145992]
[1755260452686,18.09159515,193.46,193.4,19.46145992]
[1755260452894,7.16223446,193.45,193.4,19.46145992]
[1755260453103,3.77485764,193.44,193.41,19.46145992]
[1755260453260,3.77485764,193.43,193.35,0.72]
[1755260453605,3.77485764,193.42,193.41,19.46145992]
[1755260453764,3.77485764,193.42,193.38,19.46145992]
[1755260454095,3.77485764,193.41,193.38,19.46145992]
[1755260454295,3.77485764,193.4,193.38,19.46145992]
[1755260454477,3.38737682,193.41,193.36,19.46145992]
[1755260454659,13.0137708,193.4,193.29,0.72]
[1755260454865,15.10621557,193.35,193.31,0.03]
[1755260455175,26.0,193.36,193.13,12.94398752]
[1755260455176,34.56767549,193.32,193.13,12.94398752]
[1755260455492,75.97312501,193.34,193.21,19.46145992]
[1755260455493,19.46145992,193.27,193.21,19.46145992]
[1755260455697,46.05312501,193.26,193.21,19.46145992]
[1755260455870,7.17312501,193.25,193.15,0.72]
[1755260456091,7.17312501,193.24,193.15,0.72]
[1755260456392,3.78337005,193.23,193.2,19.49145992]
[1755260456587,3.78337005,193.22,193.2,19.49145992]
[1755260456788,8.5626194,193.23,193.2,0.03]
[1755260456990,3.38737682,193.25,193.21,19.46145992]
[1755260457182,7.17069522,193.24,193.2,0.03]
[1755260457520,3.7833184,193.23,193.21,19.46145992]
[1755260458010,3.38737682,193.25,193.22,19.46145992]
[1755260458188,3.78303381,193.24,193.2,0.03]
[1755260458370,3.78303381,193.24,193.22,19.46145992]
[1755260458582,3.38737682,193.25,193.2,0.03]
[1755260458810,7.84021338,193.24,193.2,19.49145992]
[1755260459017,3.78283656,193.23,193.2,19.49145992]
[1755260459300,3.78283656,193.23,193.21,19.46145992]
[1755260459301,3.40432059,193.23,193.21,19.46145992]
[1755260459604,38.86,193.24,193.22,19.46145992]
[1755260459801,3.78301772,193.23,193.2,0.03]
[1755260460100,38.86,193.25,193.2,0.03]
[1755260460274,7.18840358,193.24,193.2,0.03]
[1755260460473,3.78367351,193.23,193.22,19.46145992]
[1755260460701,38.86,193.27,193.23,5.17517983]
[1755260460996,38.86,193.27,193.2,0.03]
[1755260460997,7.88835746,193.26,193.2,19.49145992]
[1755260461213,7.88835746,193.26,193.22,19.46145992]
[1755260461214,7.18835746,193.25,193.22,19.46145992]
[1755260461376,7.88835746,193.24,193.2,0.03]
[1755260461576,7.18835746,193.23,193.22,19.46145992]
[1755260461792,7.18835746,193.23,193.2,0.03]
[1755260461793,3.78351482,193.23,193.21,19.46145992]
[1755260461995,3.78351482,193.22,193.2,0.03]
[1755260462209,3.78351482,193.21,193.2,5.20598343]
[1755260462380,4.10484264,193.24,193.2,0.03]
[1755260462578,7.19239246,193.23,193.2,0.03]
[1755260462783,3.40484264,193.24,193.21,19.46145992]
[1755260462998,4.48774934,193.23,193.2,0.03]
[1755260463306,3.78774934,193.22,193.2,0.03]
[1755260463535,3.78774934,193.21,193.2,0.03]
[1755260463893,42.66774934,193.21,193.2,0.03]
[1755260464088,42.6665209,193.21,193.2,0.03]
[1755260464321,66.23544099,193.21,193.2,0.03]
[1755260464511,61.88019664,193.21,193.2,0.03]
[1755260464693,46.77398107,193.21,193.2,0.03]
[1755260465031,86.5173721,193.21,193.2,0.03]
[1755260465231,86.5173721,193.21,193.06,12.94925434]
[1755260465232,15.10621557,193.2,193.12,19.46145992]
[1755260465407,7.89398107,193.19,193.16,19.46145992]
[1755260465598,3.40746017,193.21,193.18,19.46145992]
[1755260465797,3.40746017,193.21,193.11,314.75412418]
[1755260465798,38.92,193.19,193.15,0.68]
[1755260465998,38.92,193.21,193.12,0.68]
[1755260466793,38.92,193.21,193.13,5.17785947]
[1755260466994,38.92,193.21,193.2,19.46145992]
[1755260467305,39.0,193.29,193.2,20.14145992]
[1755260467491,27.34970507,193.28,193.13,18.12250815]
[1755260467696,19.46145992,193.25,193.19,19.46145992]
[1755260467915,46.92824515,193.24,193.17,19.46145992]
[1755260468125,7.18824515,193.23,193.2,19.46145992]
[1755260468423,10.0,193.35,193.13,18.80250815]
[1755260468424,5.17227018,193.34,193.22,19.46145992]
[1755260468606,31.65395682,193.4,193.23,0.68]
[1755260468607,3.78319154,193.33,193.23,0.68]
[1755260468801,48.03597367,193.32,193.23,0.68]
[1755260469003,19.46145992,193.28,193.19,0.68]
[1755260469230,46.26759482,193.27,193.2,19.46145992]
[1755260469519,39.08,193.27,193.25,19.46145992]
[1755260469823,7.88813518,193.26,193.13,0.68]
[1755260470023,19.46145992,193.22,193.1,0.68]
[1755260470228,19.58970904,193.25,193.08,0.68]
[1755260470229,59.28145992,193.21,193.08,0.68]
[1755260470399,19.46145992,193.17,193.16,0.03]
[1755260470604,41.75596987,193.17,193.16,0.03]
[1755260470815,47.63275715,193.17,193.16,0.03]
[1755260471211,7.88829438,193.17,193.16,0.03]
[1755260471413,39.18,193.17,193.16,0.03]
[1755260471608,44.35678728,193.17,193.16,0.03]
[1755260471927,39.18,193.17,193.16,19.49145992]
[1755260472105,39.18,193.17,193.16,0.03]
[1755260472697,39.88,193.17,193.16,0.03]
[1755260472992,64.5182472,193.17,193.16,0.03]
[1755260473198,52.24014306,193.17,193.16,0.03]
[1755260473701,5.17678728,193.17,193.16,0.03]
[1755260473910,44.37678728,193.17,193.16,0.03]
[1755260474310,57.31875549,193.17,193.13,19.46145992]
[1755260474513,57.31875549,193.17,193.11,282.53956783]
[1755260474514,15.10621557,193.13,193.11,282.53956783]
[1755260474745,91.64365711,193.12,193.11,88.08668544]
[1755260474912,26.0,193.01,192.86,0.68]
[1755260475112,46.53348359,193.0,192.86,0.68]
[1755260475319,15.10621557,192.99,192.93,19.46145992]
[1755260475525,39.42,192.98,192.92,19.46145992]
[1755260475726,39.42,192.98,192.95,19.46145992]
[1755260475911,39.44,192.97,192.95,20.14145992]
[1755260476107,58.90145992,192.97,192.9,20.14145992]
[1755260476434,19.46145992,192.95,192.9,0.68]
[1755260476818,19.46145992,192.95,192.78,13.48682604]
[1755260476819,5.18403317,192.9,192.82,0.68]
[1755260477019,39.56,192.89,192.82,0.68]
[1755260477329,39.56,192.89,192.87,19.46145992]
[1755260477632,39.56,192.89,192.82,0.68]
[1755260477633,0.6,193.02,192.88,20.14145992]
[1755260477835,19.46145992,192.98,192.92,19.46145992]
[1755260478033,19.46145992,192.94,192.89,0.68]
[1755260478333,19.46145992,192.9,192.81,19.46145992]
[1755260478542,59.08145992,192.89,192.83,19.46145992]
[1755260478735,39.66,192.88,192.83,19.46145992]
[1755260479048,19.46145992,192.93,192.87,19.46145992]
[1755260479208,39.66,192.89,192.84,0.68]
[1755260479852,5.18298461,192.94,192.86,19.46145992]
[1755260480021,39.64,192.93,192.88,19.46145992]
[1755260480335,39.64,192.93,192.76,12.96949574]
[1755260480336,0.6,193.02,192.92,19.46145992]
[1755260480650,12.94841338,193.08,192.89,26.0]
[1755260480832,39.66,193.03,192.89,26.0]
[1755260481026,39.66,193.03,192.94,26.0]
[1755260481227,5.17920033,193.08,192.95,0.68]
[1755260481425,5.17843176,193.11,192.95,0.68]
[1755260481733,19.46145992,193.12,193.06,19.46145992]
[1755260481914,39.7,193.11,193.06,19.46145992]
[1755260482264,59.16145992,193.11,193.05,19.46145992]
[1755260482441,39.7,193.11,193.03,0.68]
[1755260482750,39.7,193.11,193.06,19.46145992]
[1755260482936,39.7,193.11,193.07,19.46145992]
[1755260483237,37.3,193.17,193.1,19.46145992]
[1755260483439,39.66,193.16,193.08,0.68]
[1755260483643,20.72664753,193.24,193.15,19.46145992]
[1755260483958,20.72664753,193.24,193.08,0.68]
[1755260483959,39.78,193.24,193.23,19.46145992]
[1755260484322,0.66,193.37,193.23,39.60291984]
[1755260484526,39.8,193.34,193.33,19.46145992]
[1755260484854,69.8,193.34,193.33,19.46145992]
[1755260485217,69.8,193.34,193.28,5.17384105]
[1755260485548,39.8,193.34,193.33,19.46145992]
[1755260485732,39.8,193.34,193.29,19.46145992]
[1755260485918,39.8,193.34,193.3,19.46145992]
[1755260486135,39.8,193.34,193.33,19.46145992]
[1755260486747,39.8,193.34,193.26,5.85412115]
[1755260486952,39.8,193.34,193.22,38.9381174]
[1755260486953,39.8,193.34,193.33,29.0448731]
[1755260487149,74.61716129,193.34,193.21,0.68]
[1755260487331,15.10621557,193.33,193.23,29.0448731]
[1755260487533,40.4,193.34,193.27,29.0448731]
[1755260487869,0.06,193.35,193.19,18.11687974]
[1755260487870,68.8448731,193.33,193.23,0.68]
[1755260488055,29.0448731,193.32,193.27,29.0448731]
[1755260488425,29.0448731,193.28,193.16,0.68]
[1755260488641,15.10621557,193.3,193.16,0.68]
[1755260488642,29.0448731,193.25,193.19,29.0448731]
[1755260488824,29.0448731,193.25,193.2,29.0448731]
[1755260489031,29.0448731,193.22,193.16,29.7248731]
[1755260489232,29.0448731,193.19,193.11,0.68]
[1755260489432,29.0448731,193.19,193.13,29.0448731]
[1755260489649,68.8848731,193.21,193.15,29.0448731]
[1755260489962,29.0448731,193.2,193.14,29.0448731]
[1755260490170,29.0448731,193.2,193.15,29.0448731]
[1755260490367,29.0448731,193.2,193.14,29.0448731]
[1755260490971,5.17732332,193.15,193.11,0.68]
[1755260491134,39.84,193.14,193.13,29.0448731]
[1755260491733,12.93990968,193.21,193.13,29.7048731]
[1755260491946,12.93712437,193.25,193.2,29.0448731]
[1755260492142,39.88,193.24,193.2,29.0448731]
[1755260492949,5.17517983,193.23,193.2,29.0448731]
[1755260493143,39.88,193.24,193.19,29.0448731]
[1755260493655,39.88,193.24,193.21,29.0448731]
[1755260493834,39.88,193.24,193.22,29.0448731]
[1755260494033,30.0,193.23,193.21,29.0448731]
[1755260494462,30.0,193.23,193.19,29.0448731]
[1755260494659,0.5,193.22,193.19,29.0448731]
[1755260494865,39.88,193.24,193.21,29.0448731]
[1755260495448,39.88,193.24,193.22,29.0448731]
[1755260496350,0.06,193.26,193.23,29.0448731]
[1755260496566,30.0,193.24,193.2,5.83598343]
[1755260496778,39.76,193.25,193.23,29.0448731]
[1755260496953,39.76,193.25,193.24,29.7048731]
[1755260497290,77.74462313,193.25,193.18,29.7048731]
[1755260497435,32.80949762,193.24,193.18,29.0448731]
[1755260497635,45.53475884,193.25,193.19,29.0448731]
[1755260497859,5.17466707,193.25,193.21,29.0448731]
[1755260498064,39.8,193.24,193.2,29.0448731]
[1755260498269,32.81243126,193.23,193.14,0.66]
[1755260498452,32.81243126,193.22,193.16,29.0448731]
[1755260498649,39.8,193.24,193.21,29.0448731]
[1755260498848,39.8,193.24,193.23,29.0448731]
[1755260499042,73.56819262,193.24,193.21,29.0448731]
[1755260499363,74.97506991,193.24,193.21,29.0448731]
[1755260499540,44.97506991,193.24,193.21,29.0448731]
[1755260499742,7.1629796,193.23,193.12,26.0]
[1755260499945,3.77008394,193.22,193.16,29.0448731]
[1755260500137,3.77008394,193.22,193.17,29.0448731]
[1755260500380,3.89289566,193.23,193.21,29.0448731]
[1755260500537,0.06,193.26,193.22,29.0448731]
[1755260500880,39.78,193.25,193.22,29.0448731]
[1755260501068,3.77132717,193.24,193.22,29.0448731]
[1755260501264,5.17517983,193.23,193.19,29.0448731]
[1755260501465,3.77098842,193.22,193.16,29.0448731]
[1755260501777,39.78,193.21,193.16,29.0448731]
[1755260502084,36.20952395,193.2,193.14,29.0448731]
[1755260502377,3.77098842,193.19,193.16,29.0448731]
[1755260502687,3.77101379,193.18,193.12,0.66]
[1755260502844,39.76,193.17,193.12,29.7048731]
[1755260503053,7.16443571,193.16,193.11,29.0448731]
[1755260503253,3.77101379,193.15,193.11,29.0448731]
[1755260503585,39.76,193.17,193.14,29.0448731]
[1755260503889,39.76,193.17,193.16,29.0448731]
[1755260504089,39.76,193.17,193.16,29.7048731]
[1755260504254,44.93640294,193.19,193.16,29.7048731]
[1755260504587,44.93640294,193.19,193.18,29.0448731]
[1755260504588,39.76,193.19,193.18,29.0448731]
[1755260505091,39.76,193.19,193.18,29.7048731]
[1755260505289,44.21108867,193.26,193.18,29.7048731]
[1755260505290,0.06,193.26,193.18,29.7048731]
[1755260505452,39.74,193.25,193.24,29.0448731]
[1755260505782,75.95477377,193.25,193.19,29.0448731]
[1755260506077,33.77348185,193.24,193.22,29.0448731]
[1755260506282,30.0,193.24,193.22,29.0448731]
[1755260506457,30.0,193.24,193.21,29.0448731]
[1755260506886,30.0,193.24,193.19,0.66]
[1755260507060,3.77282013,193.23,193.12,18.12344655]
[1755260507392,0.06,193.26,193.22,29.0448731]
[1755260507594,39.74,193.25,193.23,0.66]
[1755260507885,39.74,193.25,193.24,29.0448731]
[1755260508089,39.74,193.25,193.21,0.66]
[1755260508273,39.74,193.25,193.21,29.0448731]
[1755260508899,39.76,193.24,193.22,0.66]
[1755260509204,39.76,193.24,193.23,0.66]
[1755260509505,39.76,193.24,193.23,25.33714377]
[1755260510289,39.76,193.24,193.23,20.16196394]
[1755260510514,39.78,193.26,193.23,25.33714377]
[1755260510713,0.06,193.26,193.25,19.50196394]